fUST/lending_fUST_20260519
["ID","MTS","AMOUNT","RATE_DAILY","PERIOD"]
[422617501,1779161438000,-456.311816,0.00012627,2]
[422617506,1779161438000,-151.0,0.000129,2]
[422617504,1779161438000,-6071.17345752,0.00012896,2]
[422617486,1779161438000,-300.0,0.00012495,2]
[422617499,1779161438000,-456.5585623,0.00012626,2]
[422617484,1779161438000,-1390.71743106,0.00012196,2]
[422617508,1779161438000,-151.0,0.000129,2]
[422617488,1779161438000,-4598.19393753,0.00012496,2]
[422617490,1779161438000,-500.0,0.00012587,2]
[422617491,1779161438000,-4682.91410021,0.00012596,2]
[422617497,1779161438000,-151.0,0.00012626,2]
[422617539,1779161438000,-272.1750197,0.00012943,2]
[422617518,1779161438000,-43208.38051119,0.00012943,2]
[422617520,1779161438000,-1754.00211669,0.00012943,2]
[422617514,1779161438000,-16123.90134871,0.00012943,2]
[422617541,1779161438000,-32568.97018402,0.00012943,2]
[422617512,1779161438000,-500.0,0.00012942,2]
[422617510,1779161438000,-500.0,0.00012942,2]
[422617493,1779161438000,-151.0,0.00012616,2]
[422617495,1779161438000,-151.0,0.00012616,2]
[422617516,1779161438000,-2923.86707462,0.00012943,2]
[422617775,1779161440000,-3865.52177311,0.00012943,2]
[422618187,1779161443000,-4574.14783359,0.00012943,2]
[422618186,1779161443000,-10260.76468092,0.00012943,2]
[422618156,1779161443000,-398.77670356,0.00012943,2]
[422618558,1779161446000,-16902.48709723,0.00012943,2]
[422619381,1779162632000,-939.60557527,0.000126,2]
[422619371,1779162632000,-151.0,0.00011815,2]
[422619373,1779162632000,-151.7825727,0.00011815,2]
[422619383,1779162632000,-453.25179905,0.000126,2]
[422619377,1779162632000,-185.90107017,0.00012152,2]
[422619375,1779162632000,-151.0,0.00011815,2]
[422619391,1779162632000,-513.00241066,0.000126,2]
[422619393,1779162632000,-15450.04991465,0.000126,2]
[422619379,1779162632000,-326.633,0.00012488,2]
[422619570,1779162638000,-500.0,0.00012742,2]
[422619574,1779162638000,-500.0,0.00012742,2]
[422619576,1779162638000,-500.0,0.00012742,2]
[422619582,1779162638000,-500.0,0.00012742,2]
[422619580,1779162638000,-500.0,0.00012742,2]
[422619586,1779162638000,-500.0,0.00012742,2]
[422619590,1779162638000,-500.0,0.00012742,2]
[422619584,1779162638000,-500.0,0.00012742,2]
[422619592,1779162638000,-500.0,0.00012742,2]
[422619594,1779162638000,-501.81945367,0.00012742,2]
[422619596,1779162638000,-500.0,0.00012742,2]
[422619600,1779162638000,-500.0,0.00012742,2]
[422619578,1779162638000,-500.0,0.00012742,2]
[422619572,1779162638000,-500.0,0.00012742,2]
[422619567,1779162638000,-500.0,0.00012742,2]
[422619568,1779162638000,-500.0,0.00012742,2]
[422619564,1779162638000,-500.0,0.00012742,2]
[422619560,1779162638000,-500.0,0.00012742,2]
[422619558,1779162638000,-500.0,0.00012742,2]
[422619552,1779162638000,-54445.86263147,0.00012643,2]
[422619556,1779162638000,-500.0,0.00012742,2]
[422619554,1779162638000,-500.0,0.00012742,2]
[422619541,1779162638000,-11485.22898257,0.000126,2]
[422619549,1779162638000,-10370.1009247,0.00012643,2]
[422619545,1779162638000,-300.0,0.00012642,2]
[422619547,1779162638000,-1200.0,0.00012642,2]
[422619543,1779162638000,-300.0,0.00012642,2]
[422619598,1779162638000,-500.0,0.00012742,2]
[422619562,1779162638000,-500.0,0.00012742,2]
[422619602,1779162638000,-500.0,0.00012742,2]
[422619588,1779162638000,-500.0,0.00012742,2]
[422619606,1779162638000,-500.0,0.00012742,2]
[422619604,1779162638000,-500.0,0.00012742,2]
[422619663,1779162638000,-3746.24925059,0.00012743,2]
[422619658,1779162638000,-4532.931627,0.00012743,2]
[422619667,1779162638000,-645.68277805,0.00012743,2]
[422619665,1779162638000,-447.34908656,0.00012743,2]
[422619654,1779162638000,-4532.931627,0.00012743,2]
[422619652,1779162638000,-4532.931627,0.00012743,2]
[422619650,1779162638000,-500.0,0.00012742,2]
[422619648,1779162638000,-313.61045021,0.00012742,2]
[422619644,1779162638000,-500.0,0.00012742,2]
[422619646,1779162638000,-500.0,0.00012742,2]
[422619642,1779162638000,-500.0,0.00012742,2]
[422619638,1779162638000,-500.0,0.00012742,2]
[422619636,1779162638000,-500.0,0.00012742,2]
[422619640,1779162638000,-500.0,0.00012742,2]
[422619656,1779162638000,-4532.931627,0.00012743,2]
[422619632,1779162638000,-500.0,0.00012742,2]
[422619610,1779162638000,-500.0,0.00012742,2]
[422619613,1779162638000,-500.0,0.00012742,2]
[422619608,1779162638000,-500.0,0.00012742,2]
[422619616,1779162638000,-500.0,0.00012742,2]
[422619623,1779162638000,-500.0,0.00012742,2]
[422619614,1779162638000,-500.0,0.00012742,2]
[422619619,1779162638000,-500.0,0.00012742,2]
[422619626,1779162638000,-280.96744525,0.00012742,2]
[422619625,1779162638000,-500.0,0.00012742,2]
[422619628,1779162638000,-346.39433609,0.00012742,2]
[422619660,1779162638000,-423313.31201671,0.00012743,2]
[422619630,1779162638000,-500.0,0.00012742,2]
[422619620,1779162638000,-500.0,0.00012742,2]
[422619634,1779162638000,-500.0,0.00012742,2]
[422620323,1779162643000,-3757.44924428,0.00012743,2]
[422620326,1779162644000,-3881.22301545,0.00012743,2]
[422620713,1779162647000,-38796.49213875,0.00012543,2]
[422620721,1779162647000,-5204.31236241,0.00012945,2]
[422620725,1779162647000,-360.69996,0.00012945,2]
[422620715,1779162647000,-186.49685278,0.000128,2]
[422620719,1779162647000,-3258.8918807,0.00012932,2]
[422620717,1779162647000,-1000.0,0.000129,2]
[422621321,1779163833000,-300.0,0.00012649,2]
[422621333,1779163833000,-263.51924401,0.0001265,2]
[422621322,1779163833000,-300.0,0.00012649,2]
[422621319,1779163833000,-191.61891795,0.00012421,2]
[422621325,1779163833000,-1200.0,0.00012649,2]
[422621329,1779163833000,-4560.53156701,0.0001265,2]
[422621331,1779163833000,-1875.57172218,0.0001265,2]
[422621327,1779163833000,-2680.8792088,0.0001265,2]
[422621408,1779163838000,-2105.35719235,0.0001265,2]
[422621420,1779163838000,-2274.24540121,0.000127,2]
[422621416,1779163838000,-928.86534098,0.000127,2]
[422621419,1779163838000,-2072.15469437,0.000127,2]
[422621410,1779163838000,-16299.88479785,0.0001265,2]
[422621424,1779163838000,-528.62810148,0.00012844,2]
[422621412,1779163838000,-5173.3179796,0.0001265,2]
[422621422,1779163838000,-528.62810148,0.00012844,2]
[422621414,1779163838000,-6318.782549,0.0001265,2]
[422621434,1779163838000,-528.62810148,0.00012844,2]
[422621429,1779163838000,-528.62810148,0.00012844,2]
[422621431,1779163838000,-528.62810148,0.00012844,2]
[422621433,1779163838000,-528.62810148,0.00012844,2]
[422621445,1779163838000,-528.62810148,0.00012844,2]
[422621442,1779163838000,-528.62810148,0.00012844,2]
[422621436,1779163838000,-528.62810148,0.00012844,2]
[422621439,1779163838000,-528.62810148,0.00012844,2]
[422621441,1779163838000,-528.62810148,0.00012844,2]
[422621426,1779163838000,-528.62810148,0.00012844,2]
[422621482,1779163839000,-568.27520908,0.00012844,2]
[422621484,1779163839000,-535.27858404,0.00012844,2]
[422621486,1779163839000,-535.27858404,0.00012844,2]
[422621488,1779163839000,-535.27858404,0.00012844,2]
[422621503,1779163839000,-151.0,0.00012945,2]
[422621501,1779163839000,-3344.6175537,0.00012945,2]
[422621489,1779163839000,-610077.83288256,0.00012845,2]
[422621495,1779163839000,-3626.345302,0.00012845,2]
[422621491,1779163839000,-190185.86081673,0.00012845,2]
[422621460,1779163839000,-410.21957064,0.00012844,2]
[422621481,1779163839000,-568.27520908,0.00012844,2]
[422621497,1779163839000,-3626.345302,0.00012845,2]
[422621493,1779163839000,-3626.345302,0.00012845,2]
[422621505,1779163839000,-500.0,0.00013015,2]
[422621499,1779163839000,-3626.345302,0.00012845,2]
[422621467,1779163839000,-500.0,0.00012844,2]
[422621469,1779163839000,-650.59674453,0.00012844,2]
[422621463,1779163839000,-500.0,0.00012844,2]
[422621446,1779163839000,-528.62810148,0.00012844,2]
[422621452,1779163839000,-528.62810148,0.00012844,2]
[422621448,1779163839000,-528.62810148,0.00012844,2]
[422621450,1779163839000,-528.62810148,0.00012844,2]
[422621454,1779163839000,-528.62810148,0.00012844,2]
[422621456,1779163839000,-528.62810148,0.00012844,2]
[422621471,1779163839000,-568.27520908,0.00012844,2]
[422621458,1779163839000,-500.0,0.00012844,2]
[422621479,1779163839000,-568.27520908,0.00012844,2]
[422621477,1779163839000,-568.27520908,0.00012844,2]
[422621472,1779163839000,-568.27520908,0.00012844,2]
[422621475,1779163839000,-568.27520908,0.00012844,2]
[422621473,1779163839000,-568.27520908,0.00012844,2]
[422621470,1779163839000,-500.0,0.00012844,2]
[422621462,1779163839000,-500.0,0.00012844,2]
[422621465,1779163839000,-482.93270401,0.00012844,2]
[422621520,1779163839000,-794.0,0.000133,2]
[422621532,1779163839000,-181.04917446,0.00013398,21]
[422621522,1779163839000,-599.60298507,0.00013321,2]
[422621536,1779163839000,-711.88,0.00013425,2]
[422621556,1779163839000,-163.2282748,0.00013652,2]
[422621553,1779163839000,-557.08447835,0.00013651,2]
[422621557,1779163839000,-1000.0,0.00013698,2]
[422621563,1779163839000,-1000.0,0.00013698,2]
[422621567,1779163839000,-833.33,0.00013698,2]
[422621559,1779163839000,-1000.0,0.00013698,2]
[422621561,1779163839000,-1000.0,0.00013698,2]
[422621565,1779163839000,-1000.0,0.00013698,2]
[422621578,1779163839000,-833.33,0.00013698,2]
[422621570,1779163839000,-830.85536406,0.00013698,2]
[422621580,1779163839000,-833.33,0.00013698,2]
[422621572,1779163839000,-2.47463594,0.00013698,2]
[422621576,1779163839000,-3626.345302,0.00013698,2]
[422621518,1779163839000,-578.20924308,0.00013266,2]
[422621540,1779163839000,-325.556,0.0001347,2]
[422621534,1779163839000,-271.57376169,0.00013424,21]
[422621574,1779163839000,-833.33,0.00013698,2]
[422621542,1779163839000,-190.27671624,0.0001347,2]
[422621524,1779163839000,-621.78829552,0.00013376,2]
[422621508,1779163839000,-151.79732256,0.00013156,2]
[422621510,1779163839000,-537.6845,0.00013156,2]
[422621506,1779163839000,-161.69304527,0.00013152,2]
[422621512,1779163839000,-151.0,0.00013166,30]
[422621526,1779163839000,-203.80394655,0.0001339,21]
[422621538,1779163839000,-644.79446246,0.00013431,2]
[422621516,1779163839000,-557.5788265,0.00013211,2]
[422621530,1779163839000,-257.35652573,0.00013398,21]
[422621528,1779163839000,-257.35652573,0.0001339,21]
[422621544,1779163839000,-668.65185757,0.00013486,2]
[422621546,1779163839000,-297.0,0.000135,2]
[422621551,1779163839000,-719.04747942,0.00013596,2]
[422621548,1779163839000,-205.85239261,0.00013536,21]
[422621550,1779163839000,-693.3919763,0.00013541,2]
[422621514,1779163839000,-151.6423244,0.00013166,32]
[422621811,1779163841000,-400.97894352,0.00013751,2]
[422621824,1779163841000,-342.20580605,0.00013751,2]
[422621822,1779163841000,-150.494,0.00013751,2]
[422621820,1779163841000,-150.038,0.00013751,2]
[422621828,1779163841000,-429.42624312,0.00013751,2]
[422621818,1779163841000,-432.35105648,0.00013751,2]
[422621847,1779163843000,-4381.68638161,0.0001372,2]
[422621861,1779163844000,-200.0,0.000139,2]
[422621859,1779163844000,-420.0,0.00013877,2]
[422621864,1779163844000,-157.37,0.00013905,2]
[422621865,1779163844000,-157.37,0.00013907,2]
[422621862,1779163844000,-203.49763574,0.000139,2]
[422621860,1779163844000,-833.33,0.00013895,2]
[422621863,1779163844000,-157.37,0.00013905,2]
[422621857,1779163844000,-3626.345302,0.00013796,2]
[422621855,1779163844000,-3626.345302,0.00013796,2]
[422621858,1779163844000,-3626.345302,0.00013796,2]
[422621852,1779163844000,-40.05046844,0.00013795,2]
[422621850,1779163844000,-1413.0,0.00013751,2]
[422621851,1779163844000,-793.27953156,0.00013795,2]
[422621848,1779163844000,-1342.64590356,0.0001372,2]
[422621877,1779163844000,-833.33,0.00013999,2]
[422621853,1779163844000,-3626.345302,0.00013796,2]
[422621867,1779163844000,-157.37,0.00013907,2]
[422621849,1779163844000,-1431.36795083,0.00013751,2]
[422621866,1779163844000,-157.37,0.00013907,2]
[422621878,1779163844000,-833.33,0.00013999,2]
[422621885,1779163844000,-22.03333741,0.00013999,2]
[422621883,1779163844000,-833.33,0.00013999,2]
[422621884,1779163844000,-833.33,0.00013999,2]
[422621881,1779163844000,-833.33,0.00013999,2]
[422621882,1779163844000,-833.33,0.00013999,2]
[422621880,1779163844000,-833.33,0.00013999,2]
[422621874,1779163844000,-833.33,0.00013999,2]
[422621875,1779163844000,-833.33,0.00013999,2]
[422621873,1779163844000,-909.30101582,0.00013988,7]
[422621876,1779163844000,-833.33,0.00013999,2]
[422621870,1779163844000,-157.37,0.00013909,2]
[422621868,1779163844000,-157.34,0.00013909,2]
[422621871,1779163844000,-1000.0,0.00013911,2]
[422621869,1779163844000,-157.37,0.00013909,2]
[422621879,1779163844000,-833.33,0.00013999,2]
[422621872,1779163844000,-711.88,0.00013973,2]
[422621890,1779163847000,-811.37666259,0.00013999,2]
[422621889,1779163847000,-4263.77015796,0.0001372,2]
[422621893,1779163847000,-299.77745085,0.00014,2]
[422621895,1779163847000,-58702.33004377,0.00014,2]
[422621891,1779163847000,-2807.76570956,0.00014,2]
[422621894,1779163847000,-2329.18508868,0.00014,2]
[422621896,1779163847000,-33255.60272153,0.00014,2]
[422621892,1779163847000,-36640.32943814,0.00014,2]
[422621923,1779165032000,-201.83005552,0.00012515,2]
[422621914,1779165032000,-1079.52125974,0.000109,2]
[422621917,1779165032000,-39.27874026,0.000109,2]
[422621929,1779165032000,-188.83,0.00012518,2]
[422621919,1779165032000,-1118.8,0.000119,2]
[422621937,1779165032000,-151.0,0.00012994,28]
[422621931,1779165032000,-188.84,0.00012518,2]
[422621932,1779165032000,-185.49531174,0.000129,2]
[422621935,1779165032000,-933.30468826,0.000129,2]
[422621922,1779165032000,-173.40355048,0.00012514,2]
[422621949,1779165032000,-300.0,0.00013691,2]
[422621925,1779165032000,-74.23995753,0.00012516,2]
[422621927,1779165032000,-114.60004247,0.00012516,2]
[422621939,1779165032000,-500.0,0.00013099,2]
[422621943,1779165032000,-158.99497871,0.00013642,21]
[422621945,1779165032000,-98.36154705,0.00013642,21]
[422621947,1779165032000,-537.6845,0.00013684,2]
[422621950,1779165032000,-647.0,0.00013692,2]
[422621941,1779165032000,-210.32349755,0.00013592,2]
[422621952,1779165032000,-1624.66342673,0.00013692,2]
[422621921,1779165032000,-15.43644952,0.00012514,2]
[422622394,1779165042000,-175.4791434,0.00013699,7]
[422622397,1779165042000,-350.95828681,0.00013699,7]
[422622388,1779165042000,-1215.130735,0.00013699,2]
[422622385,1779165042000,-246.27325733,0.00013699,2]
[422622375,1779165042000,-578.33657327,0.00013692,2]
[422622382,1779165042000,-753.72674267,0.00013699,2]
[422622381,1779165042000,-180.04015833,0.00013699,2]
[422622376,1779165042000,-1413.0,0.00013692,2]
[422622391,1779165042000,-255.801644,0.00013699,2]
[422622379,1779165042000,-257.35652573,0.00013698,21]
[422622399,1779165042000,-526.43743021,0.00013699,7]
[422622417,1779165042000,-458.9215886,0.000138,2]
[422622403,1779165042000,-255.89455711,0.00013699,2]
[422622401,1779165042000,-701.91657361,0.00013699,7]
[422622414,1779165042000,-294.51074939,0.00013799,2]
[422622411,1779165042000,-321.723,0.0001372,2]
[422622413,1779165042000,-506.44512446,0.00013799,2]
[422622408,1779165042000,-794.0,0.000137,2]
[422622418,1779165042000,-3779.90698828,0.000138,2]
[422622416,1779165042000,-32153.82335609,0.000138,2]
[422622406,1779165042000,-1000.0,0.00013699,2]
[422622404,1779165042000,-511.78911421,0.00013699,2]
[422622415,1779165042000,-18402.70203543,0.000138,2]
[422622410,1779165042000,-4083.00537595,0.0001372,2]
[422622463,1779165044000,-5382.5574,0.00013959,2]
[422622475,1779165044000,-509.83846648,0.00013999,2]
[422622472,1779165044000,-500.0,0.00013999,2]
[422622465,1779165044000,-877.39571701,0.0001399,7]
[422622466,1779165044000,-151.0,0.00013992,2]
[422622464,1779165044000,-1411.8876053,0.00013959,2]
[422622458,1779165044000,-1118.8,0.000139,2]
[422622455,1779165044000,-1000.0,0.00013899,2]
[422622459,1779165044000,-2354.87803772,0.0001393,2]
[422622453,1779165044000,-500.0,0.00013891,2]
[422622462,1779165044000,-1055.9264428,0.00013959,2]
[422622456,1779165044000,-500.0,0.00013899,2]
[422622461,1779165044000,-23548.2630216,0.00013959,2]
[422622460,1779165044000,-16305.5442771,0.00013959,2]
[422622451,1779165044000,-1190.12299007,0.0001383,2]
[422622452,1779165044000,-256.86190267,0.00013859,2]
[422622450,1779165044000,-32293.51185392,0.000138,2]
[422622449,1779165044000,-12337.5079093,0.000138,2]
[422622447,1779165044000,-2092.84330633,0.000138,2]
[422622448,1779165044000,-7524.02226955,0.000138,2]
[422622446,1779165044000,-2907.15669367,0.000138,2]
[422622457,1779165044000,-311.37666259,0.00013899,2]
[422622467,1779165044000,-500.0,0.00013999,2]
[422622470,1779165044000,-500.0,0.00013999,2]
[422622468,1779165044000,-500.0,0.00013999,2]
[422622476,1779165044000,-500.0,0.00013999,2]
[422622494,1779165044000,-380.183,0.00014,2]
[422622491,1779165044000,-251.11704093,0.00014,2]
[422622492,1779165044000,-1750.33247549,0.00014,2]
[422622490,1779165044000,-28297.03630463,0.00014,2]
[422622482,1779165044000,-500.0,0.00013999,2]
[422622483,1779165044000,-500.0,0.00013999,2]
[422622486,1779165044000,-500.0,0.00013999,2]
[422622480,1779165044000,-500.0,0.00013999,2]
[422622487,1779165044000,-500.0,0.00013999,2]
[422622485,1779165044000,-500.0,0.00013999,2]
[422622493,1779165044000,-3717.18683286,0.00014,2]
[422622479,1779165044000,-500.0,0.00013999,2]
[422622481,1779165044000,-500.0,0.00013999,2]
[422622477,1779165044000,-500.0,0.00013999,2]
[422622488,1779165044000,-500.0,0.00013999,2]
[422622489,1779165044000,-300.0,0.00013999,2]
[422622478,1779165044000,-500.0,0.00013999,2]
[422622473,1779165044000,-500.0,0.00013999,2]
[422622471,1779165044000,-500.0,0.00013999,2]
[422622469,1779165044000,-500.0,0.00013999,2]
[422622474,1779165044000,-500.0,0.00013999,2]
[422622484,1779165044000,-500.0,0.00013999,2]
[422622519,1779165047000,-2450.99641604,0.00014,2]
[422622518,1779165047000,-2722.00358396,0.0001372,2]
[422622520,1779165047000,-89367.52429767,0.00014,2]
[422622524,1779165047000,-3519.63308538,0.0001403,2]
[422622526,1779165047000,-3852.96080976,0.0001413,2]
[422622521,1779165047000,-615.38143532,0.00014,2]
[422622522,1779165047000,-200.0,0.00014,7]
[422622523,1779165047000,-401.04980871,0.00014,2]
[422622527,1779165047000,-377.62147536,0.00014154,2]
[422622525,1779165047000,-154.0,0.00014031,21]
[422622596,1779166232000,-297.60614876,0.0001167,2]
[422622579,1779166232000,-50.18313706,8.17e-05,2]
[422622577,1779166232000,-218.82805056,7.67e-05,2]
[422622584,1779166232000,-165.81686294,8.17e-05,2]
[422622586,1779166232000,-216.0,9.17e-05,2]
[422622588,1779166232000,-258.21709966,9.67e-05,2]
[422622590,1779166232000,-216.0,0.0001017,2]
[422622592,1779166232000,-200.0,0.00010491,2]
[422622594,1779166232000,-216.0,0.0001117,2]
[422622597,1779166232000,-226.47076014,0.0001217,2]
[422622575,1779166232000,-216.0,7.17e-05,2]
[422622613,1779166232000,-160.0,0.00013145,2]
[422622599,1779166232000,-1370.66406605,0.00012426,2]
[422622622,1779166232000,-6228.47669791,0.000133,2]
[422622618,1779166232000,-500.0,0.00013299,2]
[422622616,1779166232000,-500.0,0.00013167,2]
[422622614,1779166232000,-160.0,0.00013145,2]
[422622620,1779166232000,-300.0,0.00013299,2]
[422622603,1779166232000,-186.3695432,0.00012854,31]
[422622608,1779166232000,-1054.0,0.00012928,2]
[422622611,1779166232000,-161.69304527,0.00013145,2]
[422622606,1779166232000,-677.1,0.000129,2]
[422622601,1779166232000,-151.0,0.00012854,30]
[422623020,1779166238000,-500.0,0.00013599,2]
[422623026,1779166238000,-500.0,0.00013599,2]
[422623022,1779166238000,-500.0,0.00013599,2]
[422623030,1779166238000,-500.0,0.00013599,2]
[422623024,1779166238000,-500.0,0.00013599,2]
[422623033,1779166238000,-500.0,0.00013599,2]
[422623037,1779166238000,-500.0,0.00013599,2]
[422623031,1779166238000,-500.0,0.00013599,2]
[422623035,1779166238000,-500.0,0.00013599,2]
[422623028,1779166238000,-500.0,0.00013599,2]
[422623039,1779166238000,-188.89014713,0.00013599,2]
[422623047,1779166238000,-500.0,0.00013599,2]
[422623041,1779166238000,-500.0,0.00013599,2]
[422623043,1779166238000,-649.28888641,0.00013599,2]
[422623049,1779166238000,-500.0,0.00013599,2]
[422623051,1779166238000,-500.0,0.00013599,2]
[422623018,1779166238000,-500.0,0.00013599,2]
[422623059,1779166238000,-500.0,0.00013599,2]
[422623053,1779166238000,-500.0,0.00013599,2]
[422623063,1779166238000,-500.0,0.00013599,2]
[422623061,1779166238000,-500.0,0.00013599,2]
[422623065,1779166238000,-500.0,0.00013599,2]
[422623057,1779166238000,-500.0,0.00013599,2]
[422623055,1779166238000,-500.0,0.00013599,2]
[422623045,1779166238000,-500.0,0.00013599,2]
[422623014,1779166238000,-151.0,0.00013592,2]
[422623012,1779166238000,-151.0,0.00013592,2]
[422623016,1779166238000,-156.78100358,0.00013592,2]
[422623067,1779166238000,-500.0,0.00013599,2]
[422622965,1779166238000,-28998.06897706,0.000133,2]
[422622970,1779166238000,-500.0,0.00013573,2]
[422622969,1779166238000,-1054.0,0.000135,2]
[422622967,1779166238000,-80132.85620456,0.00013499,2]
[422622978,1779166238000,-537.6845,0.00013592,2]
[422622980,1779166238000,-151.0,0.00013592,2]
[422622982,1779166238000,-151.0,0.00013592,2]
[422622985,1779166238000,-151.0,0.00013592,2]
[422622983,1779166238000,-151.0,0.00013592,2]
[422622974,1779166238000,-151.0,0.00013592,2]
[422622987,1779166238000,-151.0,0.00013592,2]
[422622972,1779166238000,-160.0,0.00013581,3]
[422622976,1779166238000,-164.82916223,0.00013592,2]
[422622989,1779166238000,-151.0,0.00013592,2]
[422622991,1779166238000,-151.0,0.00013592,2]
[422622993,1779166238000,-151.0,0.00013592,2]
[422623004,1779166238000,-151.0,0.00013592,2]
[422623008,1779166238000,-151.0,0.00013592,2]
[422623006,1779166238000,-151.0,0.00013592,2]
[422623010,1779166238000,-151.0,0.00013592,2]
[422622995,1779166238000,-151.0,0.00013592,2]
[422622997,1779166238000,-151.0,0.00013592,2]
[422622999,1779166238000,-151.0,0.00013592,2]
[422623002,1779166238000,-151.0,0.00013592,2]
[422623001,1779166238000,-151.0,0.00013592,2]
[422623071,1779166238000,-500.0,0.00013599,2]
[422623087,1779166238000,-317.615,0.00013698,2]
[422623083,1779166238000,-557.5788265,0.00013647,2]
[422623131,1779166238000,-768.79747471,0.00013999,2]
[422623142,1779166238000,-500.0,0.00013999,2]
[422623130,1779166238000,-427.10970817,0.00013999,2]
[422623134,1779166238000,-500.0,0.00013999,2]
[422623146,1779166238000,-500.0,0.00013999,2]
[422623148,1779166238000,-500.0,0.00013999,2]
[422623149,1779166238000,-500.0,0.00013999,2]
[422623152,1779166238000,-500.0,0.00013999,2]
[422623159,1779166238000,-500.0,0.00013999,2]
[422623171,1779166238000,-1366.75106615,0.00014051,2]
[422623157,1779166238000,-500.0,0.00013999,2]
[422623163,1779166238000,-539.84334832,0.00013999,2]
[422623167,1779166238000,-14000.0,0.00014,2]
[422623173,1779166238000,-200.0,0.000141,2]
[422623169,1779166238000,-101281.63977632,0.00014,2]
[422623154,1779166238000,-500.0,0.00013999,2]
[422623165,1779166238000,-500.0,0.00013999,2]
[422623161,1779166238000,-500.0,0.00013999,2]
[422623179,1779166238000,-1000.0,0.00014121,2]
[422623177,1779166238000,-500.0,0.00014121,2]
[422623175,1779166238000,-2135.54854086,0.00014104,2]
[422623187,1779166238000,-160.0,0.00014184,5]
[422623069,1779166238000,-500.0,0.00013599,2]
[422623181,1779166238000,-500.0,0.00014154,2]
[422623185,1779166238000,-3075.18989884,0.00014157,2]
[422623140,1779166238000,-500.0,0.00013999,2]
[422623136,1779166238000,-500.0,0.00013999,2]
[422623183,1779166238000,-500.0,0.00014154,2]
[422623138,1779166238000,-500.0,0.00013999,2]
[422623085,1779166238000,-336.99519786,0.0001367,2]
[422623089,1779166238000,-1000.0,0.00013698,2]
[422623075,1779166238000,-500.0,0.00013599,2]
[422623073,1779166238000,-500.0,0.00013599,2]
[422623092,1779166238000,-1000.0,0.00013698,2]
[422623094,1779166238000,-1000.0,0.00013699,2]
[422623079,1779166238000,-647.0,0.00013608,2]
[422623081,1779166238000,-2203.0,0.00013608,2]
[422623095,1779166238000,-607.565368,0.00013699,2]
[422623097,1779166238000,-1000.0,0.00013699,2]
[422623099,1779166238000,-578.20924308,0.00013702,2]
[422623077,1779166238000,-500.0,0.00013599,2]
[422623103,1779166238000,-181.4421227,0.00013757,2]
[422623128,1779166238000,-5048.8174222,0.00013937,2]
[422623114,1779166238000,-160.0,0.00013883,4]
[422623125,1779166238000,-3495.9570456,0.00013937,2]
[422623124,1779166238000,-5953.8684772,0.00013937,2]
[422623108,1779166238000,-500.0,0.00013847,2]
[422623109,1779166238000,-1000.0,0.00013847,2]
[422623144,1779166238000,-500.0,0.00013999,2]
[422623105,1779166238000,-401.0,0.000138,2]
[422623118,1779166238000,-1724.5046208,0.00013937,2]
[422623101,1779166238000,-1757.85742732,0.00013703,5]
[422623116,1779166238000,-677.1,0.000139,2]
[422623112,1779166238000,-1919.61516659,0.00013871,2]
[422623258,1779166239000,-162.497758,0.00014568,2]
[422623246,1779166239000,-1336.62723029,0.00014466,2]
[422623248,1779166239000,-12288.45883575,0.00014472,2]
[422623250,1779166239000,-160.0,0.00014486,6]
[422623252,1779166239000,-711.88,0.00014521,2]
[422623254,1779166239000,-5849.14318069,0.0001453,2]
[422623263,1779166239000,-160.0,0.00014594,2]